[Event "SVK Extraliga 2019-20"]
[Site "Slovakia"]
[Date "2019.11.23"]
[Round "3.5"]
[White "Lintner, Igor"]
[Black "Hausner, Ivan"]
[Result "0-1"]
[ECO "A45"]
[WhiteElo "2187"]
[BlackElo "2374"]
[Annotator "NA"]
[PlyCount "62"]
[EventDate "2019.10.19"]
[EventType "team-tourn"]
[EventCountry "SVK"]
[SourceTitle "playchess.com"]
[Source "ChessBase"]
[SourceQuality "1"]
[WhiteTeam "KSN"]
[BlackTeam "Liptovska"]
[TimeControl "40/5400+30:1800+30"]

1. d4 {[%emt 0:00:54]} Nf6 {[%emt 0:00:00]} 2. Nc3 {[%emt 0:00:18]} d5 {[%emt 0:00:00]} 3. Bf4 {[%emt 0:00:05]} e6 {[%emt 0:00:02]} 4. e3 {[%emt 0:00:08]} Bd6 {[%emt 0:00:06]} 5. Bg3 {[%emt 0:01:58]} Nbd7 {[%emt 0:01:30]} 6. Nf3 {[%emt 0:01:58]} Bxg3 {[%emt 0:02:15]} 7. hxg3 {[%emt 0:00:07]} c6 {[%emt 0:00:41]} 8. Bd3 {[%emt 0:03:14]} Qe7 {[%emt 0:00:41]} 9. Ne5 {[%emt 0:12:25]} Nxe5 {[%emt 0:00:08]} 10. dxe5 {[%emt 0:00:01]} Nd7 {[%emt 0:00:07]} 11. Qg4 {[%emt 0:00:33]} g6 {[%emt 0:00:26]} 12. f4 {[%emt 0:01:44]} Nc5 {[%emt 0:01:26]} 13. O-O-O {[%emt 0:00:37]} h5 {[%emt 0:08:33]} 14. Qf3 {[%emt 0:00:55]} Rg8 {[%emt 0:00:06]} 15. g4 {[%emt 0:03:54]} hxg4 {[%emt 0:00:05]} 16. Qxg4 {[%emt 0:00:02]} Bd7 17. Rh7 {[%emt 0:07:21]} O-O-O {[%emt 0:01:25]} 18. Rdh1 {[%emt 0:04:53]} g5 {[%emt 0:03:06]} 19. Qh5 {[%emt 0:03:28]} gxf4 {[%emt 0:02:54]} 20. Rxf7 {[%emt 0:05:53]} Nxd3+ {[%emt 0:00:18]} 21. cxd3 {[%emt 0:00:02]} Qc5 {[%emt 0:00:41]} 22. d4 {[%emt 0:01:43]} Qb6 {[%emt 0:00:28]} 23. Qf3 {[%emt 0:13:24]} fxe3 {[%emt 0:00:20]} 24. Rd1 {[%emt 0:08:49]} c5 {[%emt 0:00:38]} 25. Kb1 {[%emt 0:03:21]} cxd4 {[%emt 0:02:01]} 26. Ne2 {[%emt 0:02:40]} Be8 {[%emt 0:00:06]} 27. Nxd4 {[%emt 0:12:46]} Bxf7 {[%emt 0:00:14]} 28. Qxf7 {[%emt 0:00:01]} Rxg2 {[%emt 0:02:27]} 29. b3 {[%emt 0:00:01]} Kb8 {[%emt 0:00:35]} 30. Nxe6 {[%emt 0:00:43]} Rc8 {[%emt 0:00:35]} 31. Nf8 {[%emt 0:00:26]} Qc6 {[%emt 0:00:39]} 0-1

[Event "SVK Extraliga 2019-20"]
[Site "Slovakia"]
[Date "2019.11.23"]
[Round "3.6"]
[White "Zpevak, Pavel"]
[Black "Csiba, Dominik"]
[Result "1-0"]
[ECO "A59"]
[WhiteElo "2341"]
[BlackElo "2360"]
[Annotator "NA"]
[PlyCount "86"]
[EventDate "2019.10.19"]
[EventType "team-tourn"]
[EventCountry "SVK"]
[SourceTitle "playchess.com"]
[Source "ChessBase"]
[SourceQuality "1"]
[WhiteTeam "Dubnica"]
[BlackTeam "Streda"]
[TimeControl "40/5400+30:1800+30"]

1. d4 {[%emt 0:00:00]} Nf6 {[%emt 0:00:00]} 2. c4 {[%emt 0:00:00]} c5 {[%emt 0:00:05]} 3. d5 {[%emt 0:00:07]} b5 {[%emt 0:00:04]} 4. cxb5 {[%emt 0:00:11]} a6 {[%emt 0:00:06]} 5. bxa6 {[%emt 0:00:08]} g6 {[%emt 0:00:31]} 6. Nc3 {[%emt 0:00:21]} Bxa6 {[%emt 0:00:05]} 7. Nf3 {[%emt 0:00:48]} Bg7 {[%emt 0:00:36]} 8. e4 {[%emt 0:01:41]} Bxf1 {[%emt 0:00:06]} 9. Kxf1 {[%emt 0:00:02]} d6 {[%emt 0:00:26]} 10. g3 {[%emt 0:00:39]} O-O {[%emt 0:05:22]} 11. Kg2 {[%emt 0:01:10]} Nbd7 {[%emt 0:00:08]} 12. Qe2 {[%emt 0:01:09]} Qa5 {[%emt 0:07:01]} 13. h3 {[%emt 0:14:06]} Rfb8 {[%emt 0:06:58]} 14. Rd1 {[%emt 0:07:37]} Ne8 {[%emt 0:32:03]} 15. Bg5 {[%emt 0:01:24]} Rb7 {[%emt 0:01:30]} 16. Rac1 {[%emt 0:15:07]} Bxc3 {[%emt 0:05:36]} 17. bxc3 {[%emt 0:00:26]} f6 {[%emt 0:00:08]} 18. Bh6 {[%emt 0:03:05]} Qxa2 {[%emt 0:00:15]} 19. Qe1 {[%emt 0:04:11]} Rab8 {[%emt 0:03:03]} 20. h4 {[%emt 0:08:58]} Kf7 {[%emt 0:08:51]} 21. Qe3 {[%emt 0:05:14]} Rb2 {[%emt 0:03:22]} 22. Ra1 {[%emt 0:11:45]} Qc4 {[%emt 0:00:45]} 23. Nd2 {[%emt 0:01:36]} Qb5 {[%emt 0:00:07]} 24. Rdb1 {[%emt 0:05:40]} Rb6 {[%emt 0:00:41]} 25. Qf4 {[%emt 0:06:38]} Rxb1 {[%emt 0:12:23]} 26. Rxb1 {[%emt 0:00:11]} Qd3 {[%emt 0:00:09]} 27. Rxb6 {[%emt 0:01:36]} Nxb6 {[%emt 0:00:11]} 28. Qf3 {[%emt 0:02:00]} Qc2 {[%emt 0:02:23]} 29. h5 {[%emt 0:01:51]} Nc7 {[%emt 0:04:41]} 30. Bf4 {[%emt 0:03:21]} Nb5 {[%emt 0:02:56]} 31. hxg6+ {[%emt 0:01:17]} hxg6 {[%emt 0:00:05]} 32. Qg4 {[%emt 0:00:16]} Qxc3 {[%emt 0:03:02]} 33. Qe6+ {[%emt 0:00:18]} Ke8 {[%emt 0:00:04]} 34. Qg8+ {[%emt 0:00:44]} Kd7 {[%emt 0:00:02]} 35. Qe6+ {[%emt 0:01:36]} Kd8 {[%emt 0:00:04]} 36. Qg8+ {[%emt 0:00:04]} Kc7 {[%emt 0:00:13]} 37. Qe8 {[%emt 0:00:05]} Nd7 {[%emt 0:00:37]} 38. Qxe7 {[%emt 0:00:23]} g5 {[%emt 0:00:19]} 39. Be3 {[%emt 0:00:47]} Nd4 {[%emt 0:02:37]} 40. e5 {[%emt 0:01:07]} Nf5 {[%emt 0:01:44]} 41. exd6+ {[%emt 0:30:06]} Kb6 {[%emt 0:05:39]} 42. Qd8+ {[%emt 0:00:00]} Ka6 {[%emt 0:00:22]} 43. Qc8+ {[%emt 0:00:00]} Ka5 {[%emt 0:01:03]} 1-0

[Event "SVK Extraliga 2019-20"]
[Site "Slovakia"]
[Date "2019.11.23"]
[Round "3.6"]
[White "Schwarz, Dusan"]
[Black "Likavsky, Tomas"]
[Result "0-1"]
[ECO "E90"]
[WhiteElo "2315"]
[BlackElo "2423"]
[Annotator "NA"]
[PlyCount "60"]
[EventDate "2019.10.19"]
[EventType "team-tourn"]
[EventCountry "SVK"]
[SourceTitle "playchess.com"]
[Source "ChessBase"]
[SourceQuality "1"]
[WhiteTeam "Modra"]
[BlackTeam "Podhajska"]
[TimeControl "40/5400+30:1800+30"]

1. d4 {[%emt 0:00:00]} Nf6 {[%emt 0:00:09]} 2. c4 {[%emt 0:00:26]} g6 {[%emt 0:00:22]} 3. Nc3 {[%emt 0:00:16]} Bg7 {[%emt 0:00:07]} 4. e4 {[%emt 0:00:10]} d6 {[%emt 0:00:05]} 5. Nf3 {[%emt 0:00:22]} O-O {[%emt 0:00:16]} 6. h3 {[%emt 0:00:15]} e5 {[%emt 0:01:13]} 7. d5 {[%emt 0:00:11]} a5 {[%emt 0:00:48]} 8. Be3 {[%emt 0:02:53]} Na6 {[%emt 0:02:38]} 9. g4 {[%emt 0:00:32]} Nc5 {[%emt 0:01:56]} 10. Nd2 {[%emt 0:00:19]} c6 {[%emt 0:08:34]} 11. Be2 {[%emt 0:03:20]} a4 {[%emt 0:04:44]} 12. a3 {[%emt 0:16:16]} Qa5 {[%emt 0:08:32]} 13. h4 {[%emt 0:05:05]} Nfxe4 {[%emt 0:06:02]} 14. Ncxe4 {[%emt 0:04:36]} Nxe4 {[%emt 0:00:08]} 15. Bf3 {[%emt 0:01:07]} cxd5 {[%emt 0:07:08]} 16. cxd5 {[%emt 0:00:17]} Nxd2 {[%emt 0:02:04]} 17. Bxd2 {[%emt 0:04:23]} Qd8 {[%emt 0:05:39]} 18. h5 {[%emt 0:03:30]} e4 {[%emt 0:01:29]} 19. Be2 {[%emt 0:01:38]} Bxb2 {[%emt 0:03:02]} 20. Rb1 {[%emt 0:02:13]} Bxa3 {[%emt 0:04:45]} 21. Bc3 {[%emt 0:09:31]} Bc5 {[%emt 0:02:24]} 22. Qc1 {[%emt 0:06:36]} e3 {[%emt 0:03:10]} 23. f4 {[%emt 0:01:16]} a3 {[%emt 0:07:06]} 24. Rb5 {[%emt 0:12:58]} Ra4 {[%emt 0:06:39]} 25. f5 {[%emt 0:13:37]} Qg5 {[%emt 0:03:52]} 26. Qa1 {[%emt 0:00:15]} gxf5 {[%emt 0:02:49]} 27. gxf5 {[%emt 0:03:12]} Bxf5 {[%emt 0:03:30]} 28. Bf6 {[%emt 0:03:45]} Qg3+ {[%emt 0:03:45]} 29. Kd1 {[%emt 0:00:07]} Qg2 {[%emt 0:00:10]} 30. Re1 {[%emt 0:02:11]} Qxd5+ {[%emt 0:00:11]} 0-1

[Event "SVK Extraliga 2019-20"]
[Site "Slovakia"]
[Date "2019.11.23"]
[Round "3.6"]
[White "Haring, Filip"]
[Black "Bochnicka, Vladimir"]
[Result "1-0"]
[ECO "B00"]
[WhiteElo "2298"]
[BlackElo "2087"]
[Annotator "NA"]
[PlyCount "61"]
[EventDate "2019.10.19"]
[EventType "team-tourn"]
[EventCountry "SVK"]
[SourceTitle "playchess.com"]
[Source "ChessBase"]
[SourceQuality "1"]
[WhiteTeam "Liptovska"]
[BlackTeam "KSN"]
[TimeControl "40/5400+30:1800+30"]

1. e4 {[%emt 0:00:00]} c5 {[%emt 0:03:43]} 2. Nf3 {[%emt 0:00:17]} d6 {[%emt 0:01:33]} 3. Nc3 {[%emt 0:01:00]} Nf6 {[%emt 0:03:58]} 4. d4 {[%emt 0:00:41]} cxd4 {[%emt 0:00:06]} 5. Nxd4 {[%emt 0:00:05]} a6 {[%emt 0:00:07]} 6. h3 {[%emt 0:03:40]} e6 {[%emt 0:01:17]} 7. g4 {[%emt 0:00:41]} b5 {[%emt 0:00:39]} 8. Bg2 {[%emt 0:02:55]} Bb7 {[%emt 0:00:28]} 9. g5 {[%emt 0:04:46]} Nfd7 {[%emt 0:00:28]} 10. f4 {[%emt 0:02:08]} Be7 {[%emt 0:02:09]} 11. h4 {[%emt 0:01:45]} Nc6 {[%emt 0:01:10]} 12. Be3 {[%emt 0:02:39]} O-O {[%emt 0:02:18]} 13. h5 {[%emt 0:14:47]} Nxd4 {[%emt 0:05:01]} 14. Qxd4 {[%emt 0:00:07]} e5 {[%emt 0:00:17]} 15. Qd2 {[%emt 0:00:25]} exf4 {[%emt 0:00:40]} 16. Bxf4 {[%emt 0:00:07]} Ne5 {[%emt 0:01:37]} 17. b3 {[%emt 0:02:16]} Rc8 {[%emt 0:03:22]} 18. Ne2 {[%emt 0:07:43]} f5 {[%emt 0:27:16]} 19. gxf6 {[%emt 0:00:32]} Bxf6 {[%emt 0:00:16]} 20. O-O-O {[%emt 0:00:47]} Qc7 {[%emt 0:06:49]} 21. Rh3 {[%emt 0:02:24]} Qc5 {[%emt 0:02:57]} 22. Kb1 {[%emt 0:02:24]} a5 {[%emt 0:07:30]} 23. Be3 {[%emt 0:06:18]} Qc7 {[%emt 0:08:48]} 24. Nd4 {[%emt 0:02:17]} Qd7 {[%emt 0:00:09]} 25. Rg3 {[%emt 0:02:27]} Bh4 {[%emt 0:08:35]} 26. Bh3 {[%emt 0:02:17]} Qe7 {[%emt 0:00:08]} 27. Bxc8 {[%emt 0:02:31]} Bxg3 {[%emt 0:00:14]} 28. Nf5 {[%emt 0:01:23]} Rxf5 {[%emt 0:00:33]} 29. Bxf5 {[%emt 0:00:46]} g6 {[%emt 0:01:02]} 30. hxg6 {[%emt 0:01:59]} hxg6 {[%emt 0:00:00]} 31. Qg2 {[%emt 0:03:10]} 1-0

[Event "SVK Extraliga 2019-20"]
[Site "Slovakia"]
[Date "2019.11.23"]
[Round "3.6"]
[White "Zambor, Norbert"]
[Black "Briestensky, Rastislav"]
[Result "1/2-1/2"]
[ECO "B07"]
[WhiteElo "2288"]
[BlackElo "2352"]
[Annotator "NA"]
[PlyCount "69"]
[EventDate "2019.10.19"]
[EventType "team-tourn"]
[EventCountry "SVK"]
[SourceTitle "playchess.com"]
[Source "ChessBase"]
[SourceQuality "1"]
[WhiteTeam "Prakovce"]
[BlackTeam "Slovan"]
[TimeControl "40/5400+30:1800+30"]

1. e4 {[%emt 0:00:56]} d6 {[%emt 0:00:00]} 2. d4 {[%emt 0:00:15]} Nf6 {[%emt 0:00:26]} 3. Nc3 {[%emt 0:02:11]} c6 {[%emt 0:03:58]} 4. Nf3 {[%emt 0:03:37]} g6 {[%emt 0:06:05]} 5. h3 {[%emt 0:03:20]} Bg7 {[%emt 0:00:09]} 6. Be3 {[%emt 0:04:05]} Qa5 {[%emt 0:10:08]} 7. Bd3 {[%emt 0:05:36]} e5 {[%emt 0:00:50]} 8. dxe5 {[%emt 0:05:07]} dxe5 {[%emt 0:00:06]} 9. O-O {[%emt 0:03:01]} O-O {[%emt 0:04:49]} 10. Qc1 {[%emt 0:07:10]} Nbd7 {[%emt 0:03:41]} 11. Bh6 {[%emt 0:02:40]} Re8 {[%emt 0:01:50]} 12. Bxg7 {[%emt 0:03:50]} Kxg7 {[%emt 0:00:06]} 13. Re1 {[%emt 0:13:52]} Nc5 {[%emt 0:07:14]} 14. Bf1 {[%emt 0:01:28]} b5 {[%emt 0:13:41]} 15. a3 {[%emt 0:04:07]} Qc7 {[%emt 0:04:19]} 16. Qe3 {[%emt 0:02:34]} Ne6 {[%emt 0:00:24]} 17. a4 {[%emt 0:09:33]} b4 {[%emt 0:05:10]} 18. Nd1 {[%emt 0:05:54]} c5 {[%emt 0:01:20]} 19. c3 {[%emt 0:07:51]} Bb7 {[%emt 0:06:03]} 20. Nd2 {[%emt 0:01:09]} Rad8 {[%emt 0:05:13]} 21. f3 {[%emt 0:00:47]} Bc6 {[%emt 0:02:27]} 22. Nc4 {[%emt 0:04:27]} Nd7 {[%emt 0:05:10]} 23. Nf2 {[%emt 0:01:02]} Rb8 {[%emt 0:03:54]} 24. Red1 {[%emt 0:00:40]} bxc3 {[%emt 0:01:02]} 25. bxc3 {[%emt 0:02:36]} Red8 {[%emt 0:01:56]} 26. Ng4 {[%emt 0:00:52]} g5 {[%emt 0:03:23]} 27. Nd6 {[%emt 0:00:35]} Ndf8 {[%emt 0:02:06]} 28. Nf5+ {[%emt 0:00:29]} Kh8 {[%emt 0:00:15]} 29. Bc4 {[%emt 0:00:32]} Rxd1+ {[%emt 0:01:20]} 30. Rxd1 {[%emt 0:00:05]} Bxa4 {[%emt 0:00:20]} 31. Ra1 {[%emt 0:02:15]} Bb3 {[%emt 0:00:54]} 32. Bd5 {[%emt 0:00:50]} Rb6 {[%emt 0:02:06]} 33. c4 {[%emt 0:00:15]} Ng6 {[%emt 0:00:39]} 34. Rb1 {[%emt 0:01:41]} Ba4 35. Rxb6 {[%emt 0:00:05]} 1/2-1/2

[Event "SVK Extraliga 2019-20"]
[Site "Slovakia"]
[Date "2019.11.23"]
[Round "3.7"]
[White "Farkas, Gabor"]
[Black "Veres, Andrej"]
[Result "0-1"]
[ECO "C44"]
[WhiteElo "2355"]
[BlackElo "2236"]
[Annotator "NA"]
[PlyCount "179"]
[EventDate "2019.10.19"]
[EventType "team-tourn"]
[EventCountry "SVK"]
[SourceTitle "playchess.com"]
[Source "ChessBase"]
[SourceQuality "1"]
[WhiteTeam "Streda"]
[BlackTeam "Dubnica"]
[TimeControl "40/5400+30:1800+30"]

1. e4 {[%emt 0:00:00]} e5 {[%emt 0:00:44]} 2. Nf3 {[%emt 0:00:00]} Nc6 {[%emt 0:00:22]} 3. d4 {[%emt 0:00:00]} exd4 {[%emt 0:00:41]} 4. Nxd4 {[%emt 0:00:00]} Nf6 {[%emt 0:01:07]} 5. Nxc6 {[%emt 0:00:05]} bxc6 {[%emt 0:00:07]} 6. Qe2 {[%emt 0:00:06]} Qe7 {[%emt 0:06:11]} 7. Nc3 {[%emt 0:04:50]} d5 {[%emt 0:05:17]} 8. exd5 {[%emt 0:06:10]} Qxe2+ {[%emt 0:01:35]} 9. Bxe2 {[%emt 0:00:18]} cxd5 {[%emt 0:00:27]} 10. Nb5 {[%emt 0:01:39]} Bb4+ {[%emt 0:00:53]} 11. c3 {[%emt 0:00:20]} Ba5 {[%emt 0:00:01]} 12. Bf4 {[%emt 0:00:42]} Kd7 {[%emt 0:07:42]} 13. Nd4 {[%emt 0:10:24]} Re8 {[%emt 0:06:03]} 14. O-O {[%emt 0:08:18]} c6 {[%emt 0:03:07]} 15. Bd3 {[%emt 0:02:27]} g6 {[%emt 0:05:20]} 16. Nb3 {[%emt 0:05:33]} Bb6 {[%emt 0:01:44]} 17. Rfe1 {[%emt 0:09:15]} Bb7 {[%emt 0:00:43]} 18. a4 {[%emt 0:04:01]} a6 {[%emt 0:02:06]} 19. a5 {[%emt 0:07:34]} Ba7 {[%emt 0:01:00]} 20. Be3 {[%emt 0:00:35]} Kd6 {[%emt 0:04:18]} 21. Bd4 {[%emt 0:06:48]} Rxe1+ {[%emt 0:06:37]} 22. Rxe1 {[%emt 0:00:10]} Nd7 {[%emt 0:01:12]} 23. Bxa7 {[%emt 0:00:54]} Rxa7 {[%emt 0:00:04]} 24. Re8 {[%emt 0:03:04]} c5 {[%emt 0:01:42]} 25. Nd2 {[%emt 0:02:25]} Bc6 {[%emt 0:03:52]} 26. f4 {[%emt 0:02:33]} c4 {[%emt 0:05:51]} 27. Bc2 {[%emt 0:00:26]} Rb7 {[%emt 0:00:32]} 28. b4 {[%emt 0:01:30]} cxb3 {[%emt 0:09:16]} 29. Nxb3 {[%emt 0:02:58]} Ba4 {[%emt 0:01:24]} 30. Nd4 {[%emt 0:00:06]} Bxc2 {[%emt 0:01:52]} 31. Nxc2 {[%emt 0:00:14]} Nf6 {[%emt 0:00:06]} 32. Re1 {[%emt 0:03:52]} Rb5 {[%emt 0:08:44]} 33. Ra1 {[%emt 0:09:34]} Ne4 {[%emt 0:01:19]} 34. Nd4 {[%emt 0:01:38]} Rc5 {[%emt 0:00:55]} 35. Rb1 {[%emt 0:03:25]} Rxa5 {[%emt 0:03:33]} 36. g3 {[%emt 0:01:48]} Kc7 {[%emt 0:01:03]} 37. f5 {[%emt 0:02:25]} Rc5 {[%emt 0:03:58]} 38. fxg6 {[%emt 0:00:23]} hxg6 {[%emt 0:00:07]} 39. Rf1 {[%emt 0:01:17]} Nd6 {[%emt 0:00:07]} 40. Ne2 {[%emt 0:00:13]} Kd7 {[%emt 0:02:42]} 41. h4 {[%emt 0:30:58]} Ke7 {[%emt 0:31:52]} 42. g4 {[%emt 0:00:00]} Nb5 {[%emt 0:00:00]} 43. Rf3 {[%emt 0:00:00]} Rc4 {[%emt 0:00:00]} 44. Rg3 {[%emt 0:00:00]} a5 {[%emt 0:00:00]} 45. h5 {[%emt 0:00:00]} gxh5 {[%emt 0:00:00]} 46. gxh5 {[%emt 0:00:00]} a4 {[%emt 0:00:00]} 47. Rg8 {[%emt 0:00:00]} Nxc3 {[%emt 0:00:00]} 48. Nxc3 {[%emt 0:00:00]} Rxc3 {[%emt 0:00:00]} 49. Kg2 {[%emt 0:00:00]} a3 {[%emt 0:00:00]} 50. h6 {[%emt 0:00:00]} a2 {[%emt 0:00:00]} 51. Ra8 {[%emt 0:00:00]} Rc6 {[%emt 0:00:57]} 52. Ra7+ {[%emt 0:00:00]} Ke8 {[%emt 0:04:29]} 53. Ra8+ {[%emt 0:00:00]} Kd7 {[%emt 0:00:58]} 54. Ra7+ {[%emt 0:00:00]} Ke8 {[%emt 0:00:10]} 55. Ra8+ {[%emt 0:00:00]} Kd7 {[%emt 0:00:13]} 56. Ra7+ {[%emt 0:00:00]} Kc8 {[%emt 0:00:04]} 57. h7 {[%emt 0:00:00]} Rh6 {[%emt 0:00:13]} 58. Rxa2 {[%emt 0:00:43]} Rxh7 {[%emt 0:00:21]} 59. Ra7 {[%emt 0:01:04]} Kd8 {[%emt 0:01:06]} 60. Kf3 {[%emt 0:00:38]} Ke8 {[%emt 0:00:49]} 61. Kf4 {[%emt 0:00:14]} Rh5 {[%emt 0:02:52]} 62. Rb7 {[%emt 0:00:32]} Kf8 {[%emt 0:00:08]} 63. Kg4 {[%emt 0:01:11]} Rh1 {[%emt 0:00:09]} 64. Rd7 {[%emt 0:00:56]} Rd1 {[%emt 0:00:02]} 65. Kf3 {[%emt 0:00:16]} Kg7 {[%emt 0:00:08]} 66. Ke2 {[%emt 0:00:11]} Rd4 {[%emt 0:00:01]} 67. Ke3 {[%emt 0:00:07]} Re4+ {[%emt 0:00:01]} 68. Kf3 {[%emt 0:00:06]} Re5 {[%emt 0:00:15]} 69. Kf4 {[%emt 0:00:04]} Rh5 {[%emt 0:00:20]} 70. Kg4 Kg6 71. Rd6+ {[%emt 0:01:45]} f6 {[%emt 0:00:01]} 72. Rd8 {[%emt 0:00:07]} Re5 {[%emt 0:00:02]} 73. Kf4 {[%emt 0:00:21]} Kf7 {[%emt 0:00:10]} 74. Rd6 {[%emt 0:00:09]} Ke7 {[%emt 0:01:01]} 75. Ra6 {[%emt 0:00:05]} Re6 {[%emt 0:00:02]} 76. Ra7+ {[%emt 0:00:07]} Kd6 {[%emt 0:02:54]} 77. Ra6+ {[%emt 0:00:07]} Kd7 {[%emt 0:00:07]} 78. Ra7+ {[%emt 0:00:06]} Kc8 {[%emt 0:00:09]} 79. Ra5 {[%emt 0:01:36]} Rd6 {[%emt 0:00:09]} 80. Ke3 {[%emt 0:00:22]} Kd7 {[%emt 0:00:28]} 81. Kd4 {[%emt 0:00:23]} Ke6 {[%emt 0:00:05]} 82. Ra8 {[%emt 0:00:24]} Rd7 {[%emt 0:00:59]} 83. Re8+ {[%emt 0:00:18]} Kf5 {[%emt 0:00:19]} 84. Re1 {[%emt 0:00:10]} Kg6 {[%emt 0:01:26]} 85. Rg1+ {[%emt 0:00:16]} Kf7 {[%emt 0:00:01]} 86. Re1 {[%emt 0:00:13]} Kg6 {[%emt 0:00:08]} 87. Rg1+ {[%emt 0:00:06]} Kf7 {[%emt 0:00:02]} 88. Re1 {[%emt 0:00:30]} Kg6 {[%emt 0:00:01]} 89. Rg1+ Kf7 90. Rf1 0-1

[Event "SVK Extraliga 2019-20"]
[Site "Slovakia"]
[Date "2019.11.23"]
[Round "3.7"]
[White "Petran, Peter"]
[Black "Danada, Tomas"]
[Result "1-0"]
[ECO "A00"]
[WhiteElo "2271"]
[BlackElo "2263"]
[Annotator "NA"]
[PlyCount "111"]
[EventDate "2019.10.19"]
[EventType "team-tourn"]
[EventCountry "SVK"]
[SourceTitle "playchess.com"]
[Source "ChessBase"]
[SourceQuality "1"]
[WhiteTeam "Slovan"]
[BlackTeam "Prakovce"]
[TimeControl "40/5400+30:1800+30"]

1. g3 {[%emt 0:00:00]} d5 {[%emt 0:09:08]} 2. Bg2 {[%emt 0:00:00]} c6 {[%emt 0:04:10]} 3. Nf3 {[%emt 0:00:00]} Bg4 {[%emt 0:00:15]} 4. d3 {[%emt 0:00:00]} Nd7 {[%emt 0:00:17]} 5. Nbd2 {[%emt 0:00:00]} e6 {[%emt 0:01:03]} 6. O-O {[%emt 0:00:16]} Be7 {[%emt 0:01:22]} 7. a3 {[%emt 0:02:42]} h6 {[%emt 0:02:56]} 8. b4 {[%emt 0:00:25]} a5 {[%emt 0:02:36]} 9. Rb1 {[%emt 0:00:07]} axb4 {[%emt 0:04:25]} 10. axb4 {[%emt 0:00:27]} Ngf6 {[%emt 0:01:05]} 11. c4 {[%emt 0:00:36]} O-O {[%emt 0:01:25]} 12. Qb3 {[%emt 0:01:36]} Re8 {[%emt 0:01:17]} 13. Bb2 {[%emt 0:00:26]} Bf8 {[%emt 0:12:12]} 14. h3 {[%emt 0:01:25]} Bh5 {[%emt 0:01:14]} 15. Rfe1 {[%emt 0:00:22]} Bg6 {[%emt 0:11:02]} 16. e4 {[%emt 0:00:33]} dxe4 {[%emt 0:01:05]} 17. dxe4 {[%emt 0:00:59]} e5 {[%emt 0:01:26]} 18. Rbd1 {[%emt 0:01:21]} Qb6 {[%emt 0:08:41]} 19. Bc3 {[%emt 0:05:06]} c5 {[%emt 0:08:44]} 20. b5 {[%emt 0:00:35]} Bd6 {[%emt 0:00:10]} 21. Nh4 {[%emt 0:00:40]} Nf8 {[%emt 0:03:32]} 22. Qb2 {[%emt 0:01:33]} Bh5 {[%emt 0:08:10]} 23. Ra1 {[%emt 0:02:31]} Rxa1 {[%emt 0:00:10]} 24. Rxa1 {[%emt 0:00:05]} Bb8 {[%emt 0:02:13]} 25. Nb3 {[%emt 0:09:29]} Qe6 {[%emt 0:03:09]} 26. Nf5 {[%emt 0:16:53]} Qxc4 {[%emt 0:01:51]} 27. Na5 {[%emt 0:00:11]} Qd3 {[%emt 0:00:28]} 28. Nxb7 {[%emt 0:00:43]} N8d7 {[%emt 0:04:08]} 29. Re1 {[%emt 0:11:20]} Bd1 {[%emt 0:01:32]} 30. Bf1 {[%emt 0:20:40]} Qc2 {[%emt 0:00:19]} 31. Qxc2 {[%emt 0:05:04]} Bxc2 {[%emt 0:00:01]} 32. f3 {[%emt 0:00:08]} Bb3 {[%emt 0:00:28]} 33. Rb1 {[%emt 0:01:23]} Be6 {[%emt 0:00:28]} 34. Nfd6 {[%emt 0:01:32]} Rf8 {[%emt 0:00:43]} 35. b6 {[%emt 0:00:37]} Ne8 {[%emt 0:02:55]} 36. Nf5 {[%emt 0:03:59]} Bxf5 {[%emt 0:01:06]} 37. exf5 {[%emt 0:00:01]} c4 {[%emt 0:01:15]} 38. Bb4 {[%emt 0:00:50]} Nxb6 {[%emt 0:00:41]} 39. Bxf8 {[%emt 0:00:11]} Kxf8 {[%emt 0:00:02]} 40. Kh2 {[%emt 0:02:19]} Bc7 {[%emt 0:00:38]} 41. Rc1 {[%emt 0:31:02]} Ke7 {[%emt 0:05:54]} 42. Bxc4 {[%emt 0:00:00]} Nxc4 {[%emt 0:00:18]} 43. Rxc4 {[%emt 0:00:00]} Kf6 {[%emt 0:00:17]} 44. g4 {[%emt 0:00:00]} e4+ {[%emt 0:01:06]} 45. Kg2 {[%emt 0:00:00]} exf3+ {[%emt 0:00:23]} 46. Kxf3 {[%emt 0:00:00]} h5 {[%emt 0:00:27]} 47. Rc6+ {[%emt 0:00:00]} Ke5 {[%emt 0:04:13]} 48. Rc1 {[%emt 0:00:00]} hxg4+ {[%emt 0:00:21]} 49. hxg4 {[%emt 0:00:00]} Kf6 {[%emt 0:01:20]} 50. Nc5 {[%emt 0:00:00]} Ke7 {[%emt 0:03:19]} 51. g5 {[%emt 0:00:00]} Nd6 {[%emt 0:03:14]} 52. Ne4 {[%emt 0:00:00]} Nxe4 {[%emt 0:00:18]} 53. Kxe4 {[%emt 0:00:00]} Ba5 {[%emt 0:01:15]} 54. Ra1 {[%emt 0:00:00]} Bb6 {[%emt 0:01:45]} 55. Rb1 {[%emt 0:00:00]} Bc7 {[%emt 0:00:24]} 56. Kd5 {[%emt 0:00:00]} 1-0